bitfinex/quotes_BTCUSD_20251201
["timestamp","ask_amount","ask_price","bid_price","bid_amount"]
[1764593407101,0.0004,85060.0,85042.0,0.23517571]
[1764593407302,0.0004,85060.0,85048.0,0.01175806]
[1764593407303,0.00051825,85060.0,85048.0,0.01175806]
[1764593407508,0.00051825,85060.0,85049.0,0.01963792]
[1764593407710,0.00051825,85060.0,85051.0,0.33748032]
[1764593407912,0.00051825,85060.0,85054.0,0.01175723]
[1764593408130,0.00051825,85060.0,85058.0,0.23513115]
[1764593408327,0.00874998,85070.0,85069.0,0.23510326]
[1764593408537,0.00874998,85070.0,85069.0,0.28202542]
[1764593408710,0.00874998,85070.0,85069.0,0.37259542]
[1764593408907,0.00874998,85070.0,85069.0,0.36529182]
[1764593409364,0.00874998,85070.0,85069.0,0.37317182]
[1764593409589,0.0004,85090.0,85089.0,0.27702278]
[1764593409721,0.00051808,85090.0,85089.0,0.36759278]
[1764593410133,0.01174605,85135.0,85112.0,0.01174922]
[1764593410475,15.00039375,85131.0,85118.0,0.01174839]
[1764593410691,15.00039375,85131.0,85130.0,0.0481]
[1764593411019,15.00039375,85131.0,85130.0,0.13867]
[1764593411442,15.00039375,85131.0,85130.0,0.15628587]
[1764593411866,13.60966375,85131.0,85130.0,0.15628587]
[1764593412081,13.60966375,85131.0,85130.0,0.21880886]
[1764593412298,13.60966375,85131.0,85130.0,0.29120166]
[1764593412491,13.44140395,85131.0,85130.0,0.29120166]
[1764593412695,13.44140395,85131.0,85130.0,0.69908166]
[1764593413741,12.87871087,85131.0,85130.0,1.02208166]
[1764593413945,12.11497982,85131.0,85130.0,1.02208166]
[1764593414103,11.61995607,85131.0,85130.0,0.94968886]
[1764593414445,10.08148897,85131.0,85130.0,1.01982201]
[1764593414602,9.66845742,85131.0,85130.0,3.01982201]
[1764593414942,8.26820596,85131.0,85130.0,3.01982201]
[1764593415143,7.71324291,85131.0,85130.0,3.01982201]
[1764593415443,7.41005909,85131.0,85130.0,3.01194201]
[1764593415747,7.41005909,85131.0,85130.0,2.94968886]
[1764593415748,6.98681068,85131.0,85130.0,2.94968886]
[1764593415901,6.61227055,85131.0,85130.0,2.9790997]
[1764593416105,5.01157012,85131.0,85130.0,3.02793682]
[1764593416427,3.93467544,85131.0,85130.0,2.99981765]
[1764593416627,3.25581919,85131.0,85130.0,3.00577049]
[1764593416820,1.76635851,85131.0,85130.0,3.02637499]
[1764593417024,0.00553671,85224.0,85183.0,0.38552299]
[1764593417269,0.00553671,85224.0,85221.0,0.24641701]
[1764593417416,0.00593014,85224.0,85223.0,0.23467843]
[1764593417619,0.00593014,85224.0,85223.0,0.63467843]
[1764593417819,0.00593014,85224.0,85223.0,0.64255843]
[1764593418065,0.00593014,85224.0,85223.0,0.00788]
[1764593418420,0.00593014,85224.0,85223.0,0.40788]
[1764593418721,0.00593014,85224.0,85223.0,0.4]
[1764593418948,0.00593014,85224.0,85223.0,0.00788]
[1764593419146,0.00593014,85224.0,85216.0,0.01173488]
[1764593419147,0.00593014,85224.0,85219.0,0.23468944]
[1764593419347,0.00593014,85224.0,85221.0,0.01173419]
[1764593419923,0.00593014,85224.0,85215.0,0.24643373]
[1764593419924,0.00593014,85224.0,85222.0,0.00788]
[1764593420121,0.00593014,85224.0,85223.0,0.00788]
[1764593421369,0.00593014,85224.0,85223.0,0.02549587]
[1764593421570,0.00593014,85224.0,85223.0,0.41101886]
[1764593421780,1e-08,85224.0,85223.0,0.41101886]
[1764593421938,0.23446933,85299.0,85250.0,0.01999998]
[1764593422137,0.23446933,85299.0,85260.0,0.00999999]
[1764593422138,0.05660292,85289.0,85260.0,0.00999999]
[1764593422349,0.23448916,85292.0,85261.0,0.01960869]
[1764593422551,0.01172415,85294.0,85261.0,0.00788]
[1764593422759,0.2344998,85288.0,85260.0,0.01172882]
[1764593422963,0.01184155,85299.0,85265.0,0.01172814]
[1764593423324,0.23458991,85299.0,85271.0,0.01172731]
[1764593423518,0.23458991,85299.0,85274.0,0.0117269]
[1764593423672,0.00011809,85299.0,85277.0,0.01172649]
[1764593424016,0.01172387,85296.0,85264.0,0.23456544]
[1764593424213,0.23448033,85295.0,85273.0,0.01172704]
[1764593424356,0.00011809,85299.0,85280.0,0.01172607]
[1764593424560,0.00011809,85299.0,85278.0,0.01172635]
[1764593424561,0.23448623,85293.0,85273.0,0.01172704]
[1764593424845,0.23447758,85296.0,85274.0,0.0117269]
[1764593425080,0.01172401,85295.0,85271.0,0.01172731]
[1764593425282,0.23449376,85291.0,85275.0,0.00784]
[1764593425600,0.01172374,85297.0,85275.0,0.00784]
[1764593425806,0.23449404,85291.0,85275.0,0.00784]
[1764593426274,0.23449404,85291.0,85276.0,0.01172662]
[1764593426422,0.01172525,85286.0,85257.0,0.01172924]
[1764593426640,0.01172607,85280.0,85244.0,0.01173103]
[1764593426859,0.00011809,85299.0,85230.0,0.00999999]
[1764593426860,0.323,85284.0,85257.0,0.23458331]
[1764593427042,0.323,85292.0,85273.0,0.01172704]
[1764593427247,0.0117236,85298.0,85274.0,0.0117269]
[1764593427464,0.00011809,85299.0,85280.0,0.23451936]
[1764593427680,0.23448817,85293.0,85281.0,0.00784]
[1764593427888,5.0,85291.0,85282.0,0.00784]
[1764593428196,0.0019164,85283.0,85271.0,0.01172731]
[1764593428361,0.23449922,85289.0,85272.0,0.00784]
[1764593428543,5.0,85291.0,85275.0,0.01172676]
[1764593428753,0.01761587,85290.0,85240.0,0.84565289]
[1764593429103,0.2345109,85284.0,85263.0,0.23456617]
[1764593429281,0.01172539,85285.0,85261.0,0.01172869]
[1764593429484,0.23450507,85287.0,85267.0,0.01172786]
[1764593429689,0.01761587,85290.0,85240.0,0.00999999]
[1764593429690,0.01172827,85264.0,85240.0,0.00999999]
[1764593429892,0.01172827,85264.0,85241.0,0.00784]
[1764593430075,0.23450672,85286.0,85262.0,0.01172855]
[1764593430275,0.02439,85330.0,85275.0,0.23453291]
[1764593430276,0.323,85304.0,85275.0,0.23453291]
[1764593430498,0.23496879,85300.0,85276.0,0.01172662]
[1764593430674,0.0005,85300.0,85280.0,0.24624764]
[1764593430882,0.0005,85300.0,85277.0,0.01172649]
[1764593430883,5.00011806,85291.0,85277.0,0.01172649]
[1764593431194,5.00011806,85291.0,85272.0,0.23454317]
[1764593431195,0.01761587,85290.0,85278.0,0.00784]
[1764593431397,0.01761587,85284.0,85261.0,0.01172869]
[1764593431575,0.01761587,85284.0,85268.0,0.01172772]
[1764593431759,0.23451507,85283.0,85269.0,0.00784]
[1764593431959,0.24624373,85282.0,85270.0,0.00784]
[1764593432159,0.01172594,85281.0,85264.0,0.01172827]
[1764593432449,0.01172594,85281.0,85260.0,0.01172882]
[1764593432450,0.23452432,85279.0,85265.0,0.00784]
[1764593432608,0.23452039,85281.0,85266.0,0.011728]
[1764593432817,0.24624972,85280.0,85264.0,0.01172827]
[1764593433017,0.23452365,85280.0,85265.0,0.01956814]
[1764593433235,0.23452365,85280.0,85257.0,0.23458348]
[1764593433236,0.011728,85266.0,85220.0,0.84565289]
[1764593433438,0.0117291,85258.0,85233.0,0.23464952]
[1764593433648,0.01173034,85249.0,85234.0,0.00784]
[1764593433854,0.24633229,85251.0,85231.0,0.01173282]
[1764593434065,0.3518159,85272.0,85230.0,9e-05]
[1764593434066,0.61144587,85289.0,85260.0,0.01172882]
[1764593434207,0.61144587,85289.0,85232.0,0.01761587]
[1764593434208,0.01172649,85277.0,85232.0,0.01761587]
[1764593434414,0.01172786,85267.0,85246.0,0.23461361]
[1764593434608,0.01172814,85265.0,85247.0,0.00784]
[1764593434823,0.01172827,85264.0,85246.0,0.01173075]
[1764593435018,0.01172827,85264.0,85249.0,0.01173034]
[1764593435221,0.01172827,85264.0,85243.0,0.24635437]
[1764593435222,0.23459528,85254.0,85233.0,0.2463809]
[1764593435421,0.02934511,85257.0,85232.0,0.01173268]
[1764593435422,0.01172937,85256.0,85238.0,0.01173185]
[1764593435667,0.01172937,85256.0,85236.0,0.2346425]
[1764593435668,0.01172979,85253.0,85236.0,0.01173213]
[1764593435828,0.01172979,85253.0,85234.0,0.0117324]
[1764593436030,0.01173048,85248.0,85230.0,0.01173295]
[1764593436248,0.01173061,85247.0,85235.0,0.00784]
[1764593436504,0.0117302,85250.0,85235.0,0.00784]
[1764593436706,0.24633871,85249.0,85235.0,0.01957226]
[1764593436915,0.01172979,85253.0,85237.0,0.23463794]
[1764593437030,0.01172993,85252.0,85237.0,0.01173199]
[1764593437229,0.01172924,85257.0,85235.0,0.2542151]
[1764593437230,0.01172717,85272.0,85253.0,0.01172979]
[1764593437477,0.01172717,85272.0,85250.0,0.0117302]
[1764593437478,0.5,85290.0,85250.0,0.0117302]
[1764593437677,0.23453965,85274.0,85257.0,0.23458462]
[1764593437852,0.26388453,85273.0,85257.0,0.01172924]
[1764593438053,0.01172731,85271.0,85254.0,0.01172965]
[1764593438257,0.01172731,85271.0,85244.0,0.23461834]
[1764593438258,0.01172814,85265.0,85247.0,0.01173061]
[1764593438520,0.01172731,85271.0,85251.0,0.01173006]
[1764593438792,0.01184588,85267.0,85254.0,0.01172965]
[1764593439019,0.00011802,85267.0,85262.0,0.23457078]
[1764593439214,0.00011802,85267.0,85261.0,0.01172869]
[1764593439215,0.00011802,85267.0,85265.0,0.23456132]
[1764593439762,0.00011802,85267.0,85262.0,0.01172855]
[1764593440022,0.00011802,85267.0,85265.0,0.23456283]
[1764593440391,0.00011802,85267.0,85266.0,9e-05]
[1764593440854,0.00011802,85267.0,85255.0,0.01172951]
[1764593441052,0.00011802,85267.0,85260.0,0.01172882]
[1764593441361,0.00011802,85267.0,85261.0,0.0078]
[1764593441576,0.00011802,85267.0,85263.0,0.01172841]
[1764593441709,0.00011802,85267.0,85262.0,0.24629688]
[1764593441909,0.00011802,85267.0,85261.0,0.0078]
[1764593442115,0.00011802,85267.0,85266.0,0.23456008]
[1764593442543,0.00011802,85267.0,85266.0,0.23465008]
[1764593442975,0.02447126,85289.0,85288.0,0.23449957]
[1764593443174,4.98654575,85291.0,85288.0,0.23449957]
[1764593443175,0.02460564,85290.0,85288.0,0.0078]
[1764593443905,4.98654575,85291.0,85288.0,0.0078]
[1764593444147,0.02463702,85290.0,85288.0,0.0078]
[1764593444710,0.02463702,85290.0,85288.0,0.00789]
[1764593444928,4.98654575,85291.0,85288.0,0.25402331]
[1764593445110,0.02465779,85290.0,85288.0,0.25411333]
[1764593445526,0.02465777,85290.0,85289.0,0.0078]
[1764593445729,0.01172497,85288.0,85269.0,0.24627718]
[1764593445932,0.01172635,85278.0,85262.0,0.23457065]
[1764593446131,0.01172662,85276.0,85263.0,0.24236754]
[1764593446330,0.02465777,85275.0,85265.0,0.01172814]
[1764593446533,0.02465777,85274.0,85269.0,0.01172759]
[1764593446735,0.02465777,85273.0,85271.0,0.23454632]
[1764593447101,0.02465777,85290.0,85270.0,0.01172745]
[1764593447379,0.02465777,85289.0,85286.0,0.23450465]
[1764593447548,0.02465777,85288.0,85272.0,0.01172717]
[1764593447748,0.02465777,85287.0,85274.0,0.0117269]
[1764593447956,0.02465777,85286.0,85276.0,0.23453165]
[1764593448160,0.02465777,85285.0,85283.0,0.2345108]
[1764593448359,0.02465777,85290.0,85289.0,0.23449682]
[1764593448525,4.98654575,85291.0,85289.0,0.23449682]
[1764593448943,4.98654575,85291.0,85288.0,0.24622338]
[1764593449182,4.98654575,85291.0,85287.0,0.24622151]
[1764593449380,4.98654575,85291.0,85288.0,0.0078]
[1764593449528,4.98654575,85291.0,85288.0,0.01952497]
[1764593449731,0.00211114,85289.0,85288.0,0.01952497]
[1764593450041,0.00211114,85289.0,85288.0,0.0078]
[1764593450446,0.00211114,85289.0,85288.0,0.00789]
[1764593450646,0.00211114,85289.0,85277.0,0.01172649]
[1764593450849,0.02470652,85290.0,85284.0,0.01172552]
[1764593451088,0.02470652,85290.0,85285.0,0.0078]
[1764593451289,0.02470652,85289.0,85286.0,0.0078]
[1764593451515,0.0117247,85290.0,85269.0,0.01272759]
[1764593451640,0.01172552,85284.0,85273.0,0.0078]
[1764593451842,0.02471874,85283.0,85272.0,0.23454179]
[1764593452148,0.02471874,85282.0,85274.0,0.24626497]
[1764593452351,0.02471874,85286.0,85280.0,0.01172607]
[1764593452555,4.98654575,85291.0,85280.0,0.01172607]
[1764593452556,0.02471874,85290.0,85284.0,0.01172552]
[1764593452768,0.02471874,85289.0,85287.0,0.24622737]
[1764593452970,0.02471874,85288.0,85283.0,0.2462372]
[1764593453178,0.02471874,85290.0,85285.0,0.01172539]
[1764593453376,0.02471874,85289.0,85287.0,0.23450089]
[1764593453558,0.02471874,85288.0,85286.0,0.01172525]
[1764593453761,4.98654575,85291.0,85287.0,9e-05]
[1764593453762,0.02471874,85290.0,85287.0,9e-05]
[1764593454111,4.98654575,85291.0,85284.0,0.24623521]
[1764593454112,0.02471874,85289.0,85288.0,0.0078]
[1764593454814,0.02471874,85289.0,85283.0,0.01172566]
[1764593455115,4.98654575,85291.0,85288.0,0.0078]
[1764593455363,0.0247144,85290.0,85288.0,0.0078]
[1764593455569,0.0247144,85289.0,85288.0,0.0078]
[1764593455951,4.98654575,85291.0,85288.0,0.23449957]
[1764593455952,0.0247144,85290.0,85288.0,0.23449957]
[1764593456139,0.0247144,85290.0,85284.0,0.01172552]
[1764593456140,0.02471335,85290.0,85279.0,0.01172621]
[1764593456285,4.98654575,85291.0,85283.0,0.01172566]
[1764593456286,0.02471335,85289.0,85283.0,0.01172566]
[1764593456483,0.02471296,85288.0,85286.0,0.01172525]
[1764593456708,0.02471296,85290.0,85277.0,0.01172649]
[1764593456911,0.00204623,85287.0,85274.0,0.0117269]
[1764593457112,0.01172566,85283.0,85269.0,0.01272759]
[1764593457313,0.82565291,85290.0,85269.0,0.001]
[1764593457314,0.01172621,85279.0,85269.0,0.001]
[1764593457529,0.01172662,85276.0,85270.0,0.00776]
[1764593457743,0.0117269,85274.0,85270.0,0.00776]
[1764593457947,0.02471296,85274.0,85270.0,0.00776]
[1764593458171,0.03971987,85289.0,85282.0,0.23451607]
[1764593458332,4.98514754,85291.0,85290.0,0.23449407]
[1764593458500,4.98514754,85291.0,85290.0,0.24225407]
[1764593459558,4.98514754,85291.0,85290.0,0.00776]
[1764593460483,4.98514754,85291.0,85290.0,0.24225407]
[1764593460833,4.98514754,85291.0,85283.0,0.01172566]
[1764593460834,4.98514754,85291.0,85277.0,0.01172649]
[1764593461030,4.45115653,85291.0,85290.0,0.06252299]
[1764593461236,4.34367877,85291.0,85290.0,0.38552299]
[1764593461475,4.30846547,85291.0,85290.0,0.38552299]
[1764593461675,3.45334355,85291.0,85290.0,0.78552299]
[1764593461875,3.28351911,85291.0,85290.0,0.78552299]
[1764593462089,2.1601644,85291.0,85290.0,2.78552299]
[1764593462289,1.6302283,85291.0,85290.0,2.9399235]
[1764593462446,0.96925441,85291.0,85290.0,2.96619202]
[1764593462657,0.80255807,85291.0,85290.0,3.03217288]
[1764593462891,0.69496219,85291.0,85290.0,2.96619202]
[1764593463092,0.23233036,85291.0,85290.0,2.92683886]
[1764593463319,0.0005,85300.0,85290.0,2.93467886]
[1764593463540,0.00061787,85300.0,85299.0,2.61999232]
[1764593463715,0.00061787,85300.0,85299.0,2.56530933]
[1764593463933,0.0004,85380.0,85329.0,0.5573869]
[1764593464112,0.0004,85380.0,85329.0,0.62774989]
[1764593464113,0.0007928,85330.0,85329.0,0.62774989]
[1764593464316,0.0004,85380.0,85357.0,0.23431001]
[1764593464526,0.00015874,85358.0,85357.0,1.027673]
[1764593464943,0.00015874,85358.0,85357.0,0.63431001]
[1764593465278,0.00015874,85358.0,85357.0,0.304673]
[1764593465590,0.00015874,85358.0,85357.0,1.027673]
[1764593465801,0.00015874,85358.0,85357.0,0.63431001]
[1764593466008,0.00015874,85358.0,85357.0,0.64215001]
[1764593466185,0.00015874,85358.0,85357.0,0.00784]
[1764593466403,0.00015874,85358.0,85357.0,0.24215001]
[1764593466589,0.00015874,85358.0,85357.0,0.64215001]
[1764593466794,0.00015874,85358.0,85357.0,1.027673]
[1764593466995,0.0004,85380.0,85379.0,0.23424963]
[1764593467232,1e-08,85380.0,85379.0,0.62761262]
[1764593467624,1e-08,85380.0,85379.0,2.62761262]
[1764593467839,0.0001,85415.0,85414.0,0.23415365]
[1764593467996,0.00021782,85415.0,85414.0,0.62751664]
[1764593468379,0.00641216,85415.0,85414.0,0.24199365]
[1764593468764,0.00641216,85415.0,85414.0,0.30451664]
[1764593469207,1e-08,85419.0,85418.0,2.61966567]
[1764593469414,0.0004,85450.0,85449.0,0.61958073]
[1764593469607,0.00051768,85450.0,85449.0,0.62742073]
[1764593469999,0.00051768,85450.0,85449.0,0.61958073]
[1764593470246,0.00051768,85450.0,85449.0,0.30442073]
[1764593470416,0.00051768,85450.0,85444.0,0.01170357]
[1764593470417,0.00051768,85450.0,85439.0,0.01761587]
[1764593470833,0.00051768,85450.0,85447.0,0.24576573]
[1764593471373,0.00051768,85450.0,85449.0,0.61958073]
[1764593471961,0.00051768,85450.0,85449.0,0.62742073]
[1764593472172,0.00051768,85450.0,85449.0,0.61958073]
[1764593472374,0.00051768,85450.0,85449.0,0.62742073]
[1764593472581,10.0,85500.0,85494.0,0.01169672]
[1764593472785,10.00011768,85500.0,85495.0,0.00784]
[1764593473336,10.00011768,85500.0,85498.0,0.2339236]
[1764593473507,10.00011768,85500.0,85499.0,0.06252299]
[1764593473866,10.00011768,85500.0,85499.0,0.38552299]
[1764593474072,10.00011768,85500.0,85499.0,0.78552299]
[1764593474280,10.00011768,85500.0,85499.0,0.00784]
[1764593476426,10.00011768,85500.0,85477.0,0.25351924]
[1764593476666,10.00011768,85500.0,85487.0,0.01169768]
[1764593476900,10.00011768,85500.0,85488.0,0.01169754]
[1764593477129,10.00011768,85500.0,85499.0,0.23392086]
[1764593477333,10.00011768,85500.0,85499.0,0.62728385]
[1764593477689,10.00286851,85500.0,85499.0,0.61944385]
[1764593477962,10.00286851,85500.0,85499.0,0.00784]
[1764593478337,9.78586683,85500.0,85499.0,0.00784]
[1764593478628,0.01169604,85499.0,85473.0,0.01761587]
[1764593478831,9.783116,85500.0,85473.0,0.02931547]
[1764593479040,9.783116,85500.0,85488.0,0.01169754]
[1764593479229,9.783116,85500.0,85473.0,0.01761587]
[1764593479230,9.783116,85500.0,85489.0,0.00784]
[1764593479650,9.783116,85500.0,85490.0,0.00784]
[1764593479833,0.01169645,85496.0,85466.0,0.23400961]
[1764593479999,0.01169645,85496.0,85491.0,0.00784]
[1764593480000,0.01169659,85495.0,85491.0,0.00784]
[1764593480204,0.01169659,85495.0,85462.0,0.0117011]
[1764593480205,0.0116985,85481.0,85449.0,0.01170288]
[1764593480427,0.01169823,85483.0,85456.0,0.00784]
[1764593480635,0.323,85496.0,85468.0,0.01761587]
[1764593481038,0.323,85496.0,85419.0,0.5]
[1764593481039,0.01169823,85483.0,85419.0,0.5]
[1764593481218,0.01169823,85483.0,85410.0,0.00999999]
[1764593481219,0.01169741,85489.0,85458.0,0.24573474]
[1764593481447,0.01169645,85496.0,85465.0,0.01761587]
[1764593481660,0.01169754,85488.0,85466.0,0.00784]
[1764593481847,0.24566743,85482.0,85466.0,0.00784]
[1764593482046,0.23395077,85489.0,85467.0,0.00784]
[1764593482301,0.01169987,85471.0,85436.0,0.01170466]
[1764593482416,0.01170233,85453.0,85425.0,0.01170617]
[1764593482616,0.24572672,85461.0,85440.0,0.00784]
[1764593482817,0.23404435,85454.0,85440.0,0.00784]
[1764593483035,0.01170206,85455.0,85429.0,0.24581638]
[1764593483291,0.24574721,85454.0,85430.0,0.00784]
[1764593483493,0.01170507,85433.0,85430.0,0.00011768]
[1764593483693,0.01170453,85437.0,85430.0,0.00011768]
[1764593483853,0.323,85455.0,85431.0,0.01170535]
[1764593484041,0.323,85455.0,85430.0,0.00011768]
[1764593484042,0.323,85469.0,85443.0,0.0117037]
[1764593484236,0.323,85469.0,85428.0,0.00784]
[1764593484237,0.01170124,85461.0,85428.0,0.00784]
[1764593484446,0.323,85459.0,85429.0,0.01170562]
[1764593484807,0.01170206,85455.0,85428.0,0.00784]
[1764593485037,0.01170275,85450.0,85428.0,0.00784]
[1764593485151,0.23410513,85432.0,85401.0,0.23418673]
[1764593485357,0.23410513,85432.0,85356.0,0.34324698]
[1764593485358,0.22648613,85432.0,85423.0,0.00784]
[1764593485592,0.24580009,85436.0,85423.0,0.00784]
[1764593485861,0.23410705,85431.0,85423.0,0.00784]
[1764593485999,0.23410705,85431.0,85412.0,0.00784]
[1764593486185,0.23410705,85431.0,85360.0,0.82565291]
[1764593486186,0.65446705,85431.0,85376.0,0.01171289]
[1764593486389,0.65446705,85431.0,85376.0,0.01183289]
[1764593486390,0.01170919,85403.0,85376.0,0.01183289]
[1764593486644,0.23411253,85429.0,85377.0,0.00796]
[1764593486843,0.01170781,85413.0,85384.0,0.01171179]
[1764593487013,0.323,85429.0,85397.0,0.01171001]
[1764593487014,0.01170631,85424.0,85397.0,0.01171001]
[1764593487197,0.323,85420.0,85394.0,0.01171042]
[1764593487401,0.323,85420.0,85402.0,0.01170932]
[1764593487759,0.82565291,85430.0,85395.0,0.01171028]
[1764593487958,0.01761587,85429.0,85407.0,0.01170864]
[1764593488258,0.323,85434.0,85406.0,0.01170877]
[1764593488473,0.323,85434.0,85405.0,0.01170891]
[1764593488637,0.40999999,85490.0,85424.0,0.01170631]
[1764593488638,0.01170288,85449.0,85424.0,0.01170631]
[1764593488840,0.2,85490.0,85406.0,0.00039241]
[1764593488841,0.01170124,85461.0,85433.0,0.01170507]
[1764593489019,0.01761587,85454.0,85433.0,0.00784]
[1764593489207,0.01170233,85453.0,85433.0,0.00784]
[1764593489408,0.00093914,85444.0,85433.0,0.00784]
[1764593489723,0.01761587,85484.0,85460.0,0.23402555]
[1764593490036,0.01169836,85482.0,85461.0,0.00784]
[1764593490236,0.35243164,85484.0,85461.0,0.00784]
[1764593490481,0.82239709,85480.0,85461.0,0.00784]
[1764593490674,0.00011768,85484.0,85461.0,0.00784]
[1764593490881,0.00011768,85484.0,85469.0,0.01170014]
[1764593491124,0.00011768,85484.0,85479.0,0.01169877]
[1764593491274,0.00011768,85484.0,85472.0,0.01169973]
[1764593491472,0.00011768,85484.0,85481.0,0.0116985]
[1764593491661,0.00011768,85484.0,85480.0,0.01169864]
[1764593491862,0.00011768,85484.0,85481.0,0.23397012]
[1764593492067,0.00011768,85484.0,85483.0,0.23396464]
[1764593492268,0.00011768,85484.0,85483.0,0.23040464]
[1764593493090,0.00011768,85484.0,85483.0,0.29292763]
[1764593493288,0.00011768,85484.0,85483.0,0.61592763]
[1764593493771,0.00011768,85484.0,85483.0,1.01592763]
[1764593494815,9.78299832,85500.0,85499.0,0.61944385]
[1764593494990,9.24284661,85500.0,85499.0,0.61944385]
[1764593495215,9.01500233,85500.0,85499.0,0.62740385]
[1764593495443,8.75224846,85500.0,85499.0,1.02740385]
[1764593495654,8.50178357,85500.0,85499.0,1.02740385]
[1764593495811,8.29124085,85500.0,85499.0,1.02740385]
[1764593496202,8.19124085,85500.0,85499.0,1.02740385]
[1764593496497,7.40110601,85500.0,85499.0,3.35303496]
[1764593496770,6.74605508,85500.0,85499.0,3.35303496]
[1764593496953,6.7109197,85500.0,85499.0,3.35303496]
[1764593497106,6.67580123,85500.0,85499.0,3.35303496]
[1764593497311,6.67580123,85500.0,85499.0,3.01956385]
[1764593497532,6.67580123,85500.0,85499.0,1.02740385]
[1764593498493,6.67580123,85500.0,85499.0,0.63404086]
[1764593498777,6.67580123,85500.0,85499.0,1.02740385]
[1764593499184,6.67580123,85500.0,85499.0,0.00796]
[1764593499381,6.4875238,85500.0,85499.0,0.00796]
[1764593499734,6.4875238,85500.0,85494.0,0.24562987]
[1764593499735,0.01169659,85495.0,85464.0,0.01170083]
[1764593499932,0.323,85495.0,85477.0,0.00784]
[1764593500271,6.48477297,85500.0,85477.0,0.00011768]
[1764593500469,0.01169618,85498.0,85477.0,0.00011768]
[1764593500732,0.01169823,85483.0,85477.0,0.00011768]
[1764593500887,0.23397809,85479.0,85477.0,0.00011768]
[1764593501293,0.06252299,85468.0,85419.0,0.00784]
[1764593501475,0.01170083,85464.0,85427.0,0.23411801]
[1764593501676,0.30970083,85465.0,85428.0,0.00011]
[1764593501885,0.01170316,85447.0,85419.0,0.00784]
[1764593502100,0.01170453,85437.0,85419.0,0.00784]
[1764593502345,0.24579533,85437.0,85419.0,0.00784]
[1764593502545,0.01170398,85441.0,85420.0,0.01772587]
[1764593502748,0.01170439,85438.0,85420.0,0.01761587]
[1764593502998,0.01170425,85439.0,85420.0,0.01761587]
[1764593503201,0.01170453,85437.0,85420.0,0.01761587]
[1764593503432,0.23403624,85457.0,85427.0,0.0117059]
[1764593503606,0.0001175,85457.0,85433.0,0.01761587]
[1764593503808,0.0001175,85457.0,85443.0,0.0117037]
[1764593504009,0.0001175,85457.0,85451.0,0.01170261]
[1764593504222,0.01170233,85453.0,85420.0,0.02943273]
[1764593504562,0.01170275,85450.0,85424.0,0.00784]
[1764593504856,0.01170233,85453.0,85427.0,0.0117059]
[1764593505016,0.23415347,85457.0,85433.0,0.01761587]
[1764593505180,0.0001175,85457.0,85440.0,0.23408239]
[1764593505381,0.0001175,85457.0,85439.0,0.01170425]
[1764593505586,0.0001175,85457.0,85451.0,0.01170261]
[1764593505787,0.0001175,85457.0,85454.0,0.0117022]
[1764593506100,0.0001175,85457.0,85456.0,0.23403856]
[1764593506313,0.0001175,85457.0,85452.0,0.00795]
[1764593506314,0.0001175,85457.0,85455.0,0.00011]
[1764593506624,0.0001175,85457.0,85455.0,0.23415129]
[1764593506826,0.0001175,85457.0,85455.0,0.00011]
[1764593507028,0.0001175,85457.0,85452.0,0.00784]
[1764593507224,0.0001175,85457.0,85453.0,0.00011]
[1764593507476,0.0001175,85457.0,85454.0,0.0117022]
[1764593507620,0.0001175,85457.0,85456.0,0.23403856]
[1764593507802,0.0001175,85457.0,85454.0,0.24574462]
[1764593507803,0.0001175,85457.0,85455.0,0.00011]
[1764593508009,0.0001175,85457.0,85455.0,0.23414954]
[1764593508230,0.0001175,85457.0,85456.0,0.00011]
[1764593508645,0.0001175,85457.0,85452.0,0.00784]
[1764593509069,0.0001175,85457.0,85450.0,0.01170275]
[1764593509272,0.0001175,85457.0,85451.0,0.0078]
[1764593510004,0.0001175,85457.0,85435.0,0.0117048]
[1764593510005,0.0001175,85457.0,85452.0,0.0078]
[1764593510205,0.0001175,85457.0,85453.0,0.0078]
[1764593511018,0.0001175,85457.0,85454.0,0.00011]
[1764593511331,0.23404404,85454.0,85453.0,0.0078]
[1764593511534,0.23404404,85454.0,85420.0,0.25175232]
[1764593511535,0.09661,85457.0,85444.0,0.0078]
[1764593511734,0.33470206,85455.0,85444.0,0.0078]
[1764593511902,0.09661,85469.0,85444.0,0.0078]
[1764593511903,0.323,85464.0,85451.0,0.01170261]
[1764593512067,0.01169754,85488.0,85459.0,0.23402898]
[1764593512268,0.01169795,85485.0,85454.0,0.0117022]
[1764593512466,0.01761587,85484.0,85451.0,0.01170261]
[1764593512689,0.01761587,85484.0,85449.0,0.01170288]
[1764593512690,0.01169891,85478.0,85449.0,0.01170288]
[1764593512870,0.01169932,85475.0,85449.0,0.01181288]
[1764593513068,0.01169809,85484.0,85456.0,0.01170192]
[1764593513283,0.323,85482.0,85456.0,0.01170192]
[1764593513555,0.01169741,85489.0,85463.0,0.01170097]
[1764593513739,0.01169686,85493.0,85466.0,0.01170055]
[1764593513895,0.24561794,85499.0,85474.0,0.23398844]
[1764593514101,6.71869345,85500.0,85467.0,0.0078]
[1764593514102,0.01169768,85487.0,85467.0,0.0078]
[1764593514432,0.01169768,85487.0,85468.0,0.0078]
[1764593514733,0.01169864,85480.0,85468.0,0.0078]
[1764593514911,0.01169864,85480.0,85454.0,0.10011]
[1764593514912,0.01169864,85480.0,85469.0,0.0078]
[1764593515114,0.23392932,85496.0,85469.0,0.0078]
[1764593515335,0.01169713,85491.0,85469.0,0.0078]
[1764593515482,0.01169672,85494.0,85469.0,0.0078]
[1764593515734,0.323,85482.0,85469.0,0.0078]
[1764593515882,0.011697,85492.0,85469.0,0.0078]
[1764593516087,0.00011763,85496.0,85469.0,0.0078]
[1764593516088,0.00011763,85496.0,85473.0,0.0116996]
[1764593516338,0.00011763,85496.0,85470.0,0.00011]
[1764593516485,0.23404761,85496.0,85471.0,0.01169987]
[1764593516688,0.23404761,85496.0,85469.0,0.0078]
[1764593516689,0.01169713,85491.0,85469.0,0.0078]
[1764593516900,0.01169905,85477.0,85469.0,0.0078]
[1764593517102,0.01169891,85478.0,85469.0,0.0078]
[1764593517302,0.0116996,85473.0,85469.0,0.0078]
[1764593517722,0.01169973,85472.0,85469.0,0.0078]
[1764593517923,0.0116996,85473.0,85468.0,0.0078]
[1764593518128,0.08013886,85499.0,85468.0,0.0078]
[1764593518129,0.01169823,85483.0,85468.0,0.0078]
[1764593518299,0.33469864,85480.0,85468.0,0.0078]
[1764593518500,0.323,85480.0,85468.0,0.0078]
[1764593518703,0.01169987,85471.0,85468.0,0.0078]
[1764593519123,0.01169987,85471.0,85444.0,0.01181357]
[1764593519124,0.01170124,85461.0,85444.0,0.00011]
[1764593519440,0.01170069,85465.0,85455.0,0.0078]
[1764593519636,0.01170138,85460.0,85455.0,0.0078]
[1764593519960,0.323,85472.0,85456.0,0.0078]